Cogmind - Beta 14 @@@ ROGUE MODE // 2024.12.01 @ 14:19:53 Player: abnormality Result: Destroyed by L-31 Rogue with Katana Performance ------------- Evolutions (0) 0 Regions Visited (4) 800 Robots Destroyed (13) 65 Value Destroyed (330) 330 Prototype IDs (0) 0 Alien Tech Used (0) 0 Bonus (300) 300 TOTAL SCORE: 1495 Bonus ------- Aligned with FarCom 300 Cogmind --------- Core Integrity 0/250 Matter 268/300 Energy 243/250 System Corruption 0% Temperature Cool (0) Movement Walking (190) Ox1 Location -9/Mines Parts ------- > --- POWER (1) -------- Ion Engine > --- PROPULSION (2) --- Aluminum Leg Aluminum Leg > --- UTILITY (2) ------ Heat Sink Large Storage Unit > --- WEAPON (2) ------- Light Assault Rifle Datajack > --- INVENTORY (15) --- Ion Engine Ion Engine Aluminum Leg Aluminum Leg Large Battery (200) Assault Rifle Light Assault Rifle Light Assault Rifle Peak State ------------ > --- POWER ------------ Light Nuclear Core > --- PROPULSION ------- Aluminum Leg Aluminum Leg > --- UTILITY ---------- Large Storage Unit Terrain Scanner > --- WEAPON ----------- Small Laser Assault Rifle > --- INVENTORY -------- Ion Engine Ion Engine Ion Engine Aluminum Leg Aluminum Leg Light Assault Rifle [Rating: 9] Favorites ----------- Power Ion Engine Engine Ion Engine Power Core Light Nuclear Core Propulsion Aluminum Leg Leg Aluminum Leg Utility Large Storage Unit Device Heat Sink Storage Large Storage Unit Weapon Light Assault Rifle Energy Gun Medium Laser Ballistic Gun Light Assault Rifle Special Melee Weapon Datajack Build | -11 -10 -10 -10 -9 ------- Run | Yrd Mat Min Exi Min Slots Evolved . | . . . . . Power . | . . . . . Propulsion . | . . . . . Utility . | . . . . . Weapon . | . . . . . Parts Attached 19 | 6 10 . 1 2 Power 4 | 1 2 . 1 . Engine 3 | 1 1 . 1 . Core 1 | . 1 . . . Reactor . | . . . . . Propulsion 4 | 2 2 . . . Treads . | . . . . . Leg 4 | 2 2 . . . Wheel . | . . . . . Hover . | . . . . . Flight . | . . . . . Utility 4 | 1 3 . . . Device 2 | . 2 . . . Storage 2 | 1 1 . . . Processor . | . . . . . Hackware . | . . . . . Protection . | . . . . . Artifact . | . . . . . Weapon 7 | 2 3 . . 2 Energy Gun 2 | 1 1 . . . Energy Cannon . | . . . . . Ballistic Gun 3 | 1 1 . . 1 Ballistic Cannon . | . . . . . Launcher . | . . . . . Special Weapon . | . . . . . Impact Weapon . | . . . . . Slashing Weapon . | . . . . . Piercing Weapon . | . . . . . Special Melee Weapon 2 | . 1 . . 1 Unidentified Prototypes . | . . . . . Parts Lost 3 | . 3 . . . Power 1 | . 1 . . . Propulsion . | . . . . . Utility 1 | . 1 . . . Weapon 1 | . 1 . . . Highest Loss Streak 2 | . 2 . . . To Critical Strikes . | . . . . . Average Slot Usage (%) 99 | . 97 100 100 98 Engine 13 | . 11 14 14 14 Leg 28 | . 28 28 28 28 Device 13 | . 12 14 14 14 Storage 14 | . 14 14 14 14 Energy Gun 13 | . 12 14 14 12 Ballistic Gun 14 | . 14 14 14 14 Peak Build Rating 9 | 6 9 7 7 7 Average Rating 6 | 4 7 7 7 6 On Entrance 5 | . 6 7 7 7 Naked Turns . | . . . . . Heaviest Build 29 | 13 29 29 29 29 Greatest Support 20 | 20 20 20 20 20 Greatest Overweight (x) 1 | . 1 1 1 1 Average Overweight (x) . | . . 1 1 1 Largest Inventory Capacity 15 | 8 15 15 15 15 Average Capacity 14 | 6 14 15 15 15 Most Carried 9 | 5 8 8 8 9 Average Carried 7 | 1 3 7 8 8 Final Capacity 15 | 8 15 15 15 15 Final Carried 8 | 2 6 8 8 8 Class Distribution -------------------- 73% | Mutant 26% | Scavenger-Mutant Dominant Class ---------------- Mutant | -10/Materials Mutant | -10/Mines Mutant | -10/Exiles Scavenger-Mutant | -9/Mines Resources | -11 -10 -10 -10 -9 ----------- Run | Yrd Mat Min Exi Min Matter Collected 442 | 193 233 5 1 10 Remotely . | . . . . . Salvage Created 412 | . 315 53 . 44 Parts 31 | . 24 5 . 2 Haulers Intercepted . | . . . . . Recyclers Shooed . | . . . . . Parts Field Recycled . | . . . . . Retrieved Matter . | . . . . . Parts Self-Destructed . | . . . . . Prevented . | . . . . . Kills | -11 -10 -10 -10 -9 ------- Run | Yrd Mat Min Exi Min Combat Hostiles Destroyed 12 | . 8 3 . 1 Guns 12 | . 8 3 . 1 Classes Destroyed 3 | . 3 . . . Watcher 1 | . 1 . . . Swarmer 5 | . 2 3 . . Grunt 7 | . 6 . . 1 Best Kill Streak 3 | . 3 3 . 1 Combat Bots Only 3 | . 3 3 . 1 Max Kills in Single Turn 1 | . 1 1 . 1 Gunslinging . | . . . . . Exploded . | . . . . . Melee . | . . . . . Uniques/NPCs Destroyed . | . . . . . Combat | -11 -10 -10 -10 -9 -------- Run | Yrd Mat Min Exi Min Hostile Shots Fired 99 | . 76 13 . 10 Missed 24 | . 21 2 . 1 Damage Taken 948 | . 615 88 . 245 Core 278 | . 171 25 . 82 Absorbed by Shields . | . . . . . Core Remaining (%) 100 | 100 . . . . Volleys Fired 51 | . 33 5 1 12 Largest 2 | . 2 2 2 2 Hottest 70 | . 70 70 70 70 Shots Fired 86 | . 55 10 2 19 Gun 86 | . 55 10 2 19 Cannon . | . . . . . Launcher . | . . . . . Special . | . . . . . Kinetic 51 | . 33 5 1 12 Thermal 35 | . 22 5 1 7 Explosive . | . . . . . Electromagnetic . | . . . . . Robot Hit Streak 12 | . 12 7 . 6 Robot Miss Streak 4 | . 2 1 . 4 Penetration Max . | . . . . . Secondary Targets 3 | . 1 1 . 1 Max Gunslinging Chain 1 | . 1 1 . 1 Shots Hit Robots 54 | . 36 8 . 10 Core Hits 25 | . 18 4 . 3 Critical Kills . | . . . . . Critical Parts Destroyed . | . . . . . Critical Strikes 1 | . . . . 1 Burn 1 | . . . . 1 Melee Attacks . | . . . . . Impact . | . . . . . Slashing . | . . . . . Piercing . | . . . . . Sneak Attacks . | . . . . . Combat Hostiles . | . . . . . Follow-up Attacks . | . . . . . Damage Inflicted 584 | . 399 86 . 99 Guns 582 | . 399 84 . 99 Cannons . | . . . . . Explosions . | . . . . . Melee . | . . . . . Ramming 2 | . . 2 . . Kinetic 286 | . 217 21 . 48 Thermal 296 | . 182 63 . 51 Explosive . | . . . . . Electromagnetic . | . . . . . Impact . | . . . . . Slashing . | . . . . . Piercing . | . . . . . Highest Corruption . | . . . . . Average Corruption . | . . . . . Corruption Purged . | . . . . . Corruption Blocked . | . . . . . Overload Shots . | . . . . . Overflow Damage . | . . . . . Projectiles . | . . . . . Explosions . | . . . . . Melee . | . . . . . Knockbacks . | . . . . . Impact . | . . . . . Kinetic . | . . . . . Secondary . | . . . . . Self-Inflicted Damage . | . . . . . Shots . | . . . . . Rammed . | . . . . . Targets Rammed 1 | . . 1 . . Kicked 1 | . . 1 . . Crushed . | . . . . . Highest Temperature 138 | . 138 20 10 26 Average Temperature 32 | . 40 9 7 10 Received Heat Transfer 279 | . 261 . . 18 Siege Activations . | . . . . . Robots Corrupted . | . . . . . Combat Hostiles . | . . . . . Parts Fried . | . . . . . Impact Corruptions . | . . . . . Robots Melted . | . . . . . Combat Hostiles . | . . . . . Parts Melted 1 | . . . . 1 Heat Transferred 819 | . 412 185 . 222 Parts Sabotaged . | . . . . . Parts Stolen . | . . . . . Parts Stripped . | . . . . . Power Chain Reactions . | . . . . . Alert | -11 -10 -10 -10 -9 ------- Run | Yrd Mat Min Exi Min Peak Influence 186 | . 186 101 . 20 Initial 31 | . . 31 . . Average 61 | . 64 94 . 5 Maximum Alert Level . | . . . . . Low Security (%) 100 | 100 100 100 . 100 Level 1 . | . . . . . Level 2 . | . . . . . Level 3 . | . . . . . Level 4 . | . . . . . Level 5 . | . . . . . High Security . | . . . . . Max Security . | . . . . . Squads Dispatched 2 | . 2 . . . Investigation . | . . . . . Extermination . | . . . . . Reinforcement 2 | . 2 . . . Assault . | . . . . . Garrison . | . . . . . Intercept . | . . . . . Searches Triggered . | . . . . . Construction Impeded . | . . . . . Haulers Reinforced . | . . . . . Active Scanning Responses . | . . . . . Cargo Convoy Interrupts . | . . . . . Stealth | -11 -10 -10 -10 -9 --------- Run | Yrd Mat Min Exi Min Distress Signals 1 | . 1 . . . Communications Jammed . | . . . . . Distress Signals . | . . . . . Times Spotted 22 | . 16 3 . 3 Peak Tracking Total 4 | . 4 3 . 3 Tactical Retreats . | . . . . . Traps | -11 -10 -10 -10 -9 ------- Run | Yrd Mat Min Exi Min Traps Triggered . | . . . . . Indirectly . | . . . . . Trap Hack Attempts . | . . . . . Triggered . | . . . . . Disarmed . | . . . . . Reprogrammed . | . . . . . Reused . | . . . . . Traps Extracted . | . . . . . Installed . | . . . . . Triggered . | . . . . . Machines | -11 -10 -10 -10 -9 ---------- Run | Yrd Mat Min Exi Min Machines Disabled . | . . . . . Max in Single Turn . | . . . . . Machines Repaired . | . . . . . Machines Dismantled . | . . . . . Machines Sabotaged . | . . . . . Overloaded Fab Kills . | . . . . . Hacking | -11 -10 -10 -10 -9 --------- Run | Yrd Mat Min Exi Min Machines Accessed 5 | . 1 . 4 . Terminals 1 | . 1 . . . Fabricators . | . . . . . Repair Stations . | . . . . . Recycling Units . | . . . . . Scanalyzers . | . . . . . Garrison Access . | . . . . . Total Hacks 50 | . 1 . 49 . Successful 50 | . 1 . 49 . Failed . | . . . . . Catastrophic . | . . . . . Database Lockouts . | . . . . . Manual 1 | . . . 1 . Terminals 1 | . 1 . . . Fabricators . | . . . . . Repair Stations . | . . . . . Recycling Units . | . . . . . Scanalyzers . | . . . . . Garrison Access . | . . . . . Terminal Hacks 50 | . 1 . 49 . Record 49 | . . . 49 . Dispatch Records 1 | . 1 . . . Fabricator Hacks . | . . . . . Repair Station Hacks . | . . . . . Recycling Unit Hacks . | . . . . . Scanalyzer . | . . . . . Garrison Access Hacks . | . . . . . Unauthorized Hacks . | . . . . . Terminals . | . . . . . Fabricators . | . . . . . Repair Stations . | . . . . . Recycling Units . | . . . . . Scanalyzers . | . . . . . Garrison Access . | . . . . . Data Cores Recovered . | . . . . . Used . | . . . . . Hacking Detections . | . . . . . Full Trace Events . | . . . . . Feedback Events . | . . . . . Feedback Blocked . | . . . . . Robot Schematics Acquired . | . . . . . Robots Built . | . . . . . Authchips . | . . . . . Time . | . . . . . Total Robot Build Rating . | . . . . . Part Schematics Acquired . | . . . . . Parts Built . | . . . . . Authchips . | . . . . . Time . | . . . . . Total Part Build Rating . | . . . . . Parts Repaired . | . . . . . Time . | . . . . . Parts Recycled . | . . . . . Recycled Matter . | . . . . . Retrieved Matter . | . . . . . Retrieved Components . | . . . . . Parts Scanalyzed . | . . . . . Part Schematics Acquired . | . . . . . Parts Damaged . | . . . . . Bothacking | -11 -10 -10 -10 -9 ------------ Run | Yrd Mat Min Exi Min Used RIF Installer . | . . . . . Robots Hacked . | . . . . . Non-combat . | . . . . . Combat . | . . . . . Robot Hacks Applied . | . . . . . Relay Couplers Released . | . . . . . Fabnet Peak Effective % . | . . . . . Robots Rewired . | . . . . . Allies Hacked . | . . . . . Hacks Repelled . | . . . . . Allies | -11 -10 -10 -10 -9 -------- Run | Yrd Mat Min Exi Min Total Allies . | . . . . . Largest Group . | . . . . . Highest-Rated Group . | . . . . . Highest-Rated Ally . | . . . . . Total Orders . | . . . . . Ally Attacks . | . . . . . Total Damage . | . . . . . Kills . | . . . . . Allies Corrupted . | . . . . . Allies Melted . | . . . . . Intel | -11 -10 -10 -10 -9 ------- Run | Yrd Mat Min Exi Min Robot Analysis Total . | . . . . . Derelict Logs Recovered 1 | . . 1 . . Drone Launches . | . . . . . Drone Recoveries . | . . . . . Exploration | -11 -10 -10 -10 -9 ------------- Run | Yrd Mat Min Exi Min Turns Passed 2827 | 68 542 239 1876 102 Spaces Moved 1417 | 52 225 117 986 37 Core 13 | 13 . . . . Treads . | . . . . . Legs 1404 | 39 225 117 986 37 Wheels . | . . . . . Hover . | . . . . . Flight . | . . . . . Fastest Speed 50 | 50 120 190 190 190 Average Speed 184 | 102 175 190 190 190 Slowest Speed 190 | 120 190 190 190 190 Overloaded Moves . | . . . . . Propulsion Burnouts . | . . . . . Robots Hopped . | . . . . . Cave-ins Triggered . | . . . . . Exploration Rate (%) 37 | 3 50 25 92 16 Regions Visited 4 Branch Regions 3 Pre-discovered Areas 1 | . . . 1 . Known Exits Taken 1 | . . 1 . . Unknown Exits Taken 3 | 1 1 . 1 . Scrap Searched 1 | . . . . 1 Spaces Dug . | . . . . . Terrain Destroyed . | . . . . . Melee . | . . . . . Projectile . | . . . . . AOE . | . . . . . Terrain Rammed . | . . . . . Walls Destroyed . | . . . . . Machines Disabled . | . . . . . Actions | -11 -10 -10 -10 -9 --------- Run | Yrd Mat Min Exi Min Total 1548 | 67 318 124 987 52 Wait 41 | . 41 . . . Move 1413 | 51 224 116 985 37 Hop . | . . . . . Pick Up 21 | 9 9 2 . 1 Fast Attach . | . . . . . Attach 11 | 6 4 . . 1 Detach . | . . . . . Swap 8 | . 6 . 1 1 Drop 2 | 1 1 . . . Fire 51 | . 33 5 1 12 Melee . | . . . . . Ram . | . . . . . Kick 1 | . . 1 . . Crush . | . . . . . Escape Stasis . | . . . . . Rewire . | . . . . . Trap . | . . . . . Miscellaneous . | . . . . . Route ------- -11/Scrapyard -10/Materials (discovered 2 exits: [*Mat] / [*Min]) -10/Mines -10/Exiles (discovered 2 exits: [*Min x2]) -9/Mines History --------- Turn | Location | Event 7 | -11/Scrapyard | Discovered new exit (range 15) 69 | -11/Scrapyard | Entered Materials 303 | -10/Materials | Build established: Mutant 372 | -10/Materials | Discovered new exit (range 15) 520 | -10/Materials | Core integrity fell below 50% 598 | -10/Materials | Discovered new exit (range 6) 611 | -10/Materials | Entered Mines 711 | -10/Mines | Identified exit to Exiles 842 | -10/Mines | Deemed a non-threat by the Exiles lab entrance 850 | -10/Mines | Entered Exiles 898 | -10/Exiles | Discovered new exit (range 15) 961 | -10/Exiles | Met 8R-AWN 991 | -10/Exiles | Met EX-HEX 1050 | -10/Exiles | Met EX-BIN 1252 | -10/Exiles | Aligned with FarCom system 1254 | -10/Exiles | Given EX-Vault access code 1416 | -10/Exiles | Met EX-DEC 1483 | -10/Exiles | Visited The Gauntlet 2056 | -10/Exiles | Learned location of Zion (-6) 2132 | -10/Exiles | Discovered new exit (range 14) 2390 | -10/Exiles | Build established: Scavenger-Mutant 2726 | -10/Exiles | Entered Mines 2798 | -9/Mines | Core integrity fell below 20% 2828 | -9/Mines | Destroyed by L-31 Rogue with Katana Last Messages --------------- Who left my Assembled plushie in the Analyzer again?! I'm not erasing this message until I get an answer. --BIN 02132_ EXIT=FOUND LOCATION=UNKNOWN GOAL=ESCAPE 02726_ Receiving FarCom transmissions... 02727_ K-01 Serf collects debris. 02770_ Searching scrap... 02770_ Found Lrg. Battery. 02770_ Found 67 Matter. 02771_ Acquired 10 matter. 02774_ Acquired Lrg. Battery. 02795_ C-30 ARC bursts open, deploying its payload. 02795_ L-31 Rogue unfolds itself. 02795_ G-34 Mercenary unfolds itself. 02801_ G-34 Mercenary suffers critical hit (Burn). 02801_ Ion Engine melted. 02801_ G-34 Mercenary destroyed. 02801_ Switching to secondary target: L-31 Rogue. 02815_ Med. Laser severed. Map ----- +----------------------------------------------------+ | | | | | | | | | | | | | | | ?????????????????????????????????????????????????? | | ?????????????????????????????????????????????????? | | ??????????????????????????????????????##?????????? | | ?????????????????????????????????????? ????????? | | ?????????????????????#???????????????" """???????? | | ???????????????????# ???????????# """ """ ??????? | | ??????????????????? ??????????# """ """ ""????? | | ???????????????????? ??????????# ???? | | ???????????????????? ??????????# """ """ """???? | | ????????????????????? #?????????# """ """ """ ??? | | ????????????????????? #??#####?# """ """ """ ""? | | ?????????????????????? ## ### ? | | ?????????????????????? ## """ """???? | | ??????????????????????# ## """ """???? | | ?????????????????????## #?# """ """ """ | | ?????????????????????# #??# | | ?????????????????????# #???# """ """ """ """ | | ??????????????????g??# ?????# """ """ """ ??? | | ?????????????????#????# @#??????# """ """ """ """ | | ?????????????????# #??##l##??????# | | ??????????????????? ??# #??########## #########?? | | ????????????????????# ## #??# #?????????? | | ????????????????????# #??# ##########?????????? | | ????????????????????#### #??# #??????????????????? | | ???????????????????????# #??# #??????????????????? | | ???????????????????????# #### #??????????????????? | | ???????????????????????# % #??????????????????? | | ???????????????????????# ######??????????????????? | | ???????????????????????#=#???????????????????????? | | ???????????????????????#%#???????????????????????? | | ???????????????????????#%#???????????????????????? | | ??????????????????????? =#???????????????????????? | | ??????????????ss???????###???????????????????????? | | ?????????????????????????????????????????????????? | | ?????????????????????????????????????????????????? | | ?????????????????????????????????????????????????? | | ?????????????????????????????????????????????????? | | ?????????????????????????????????????????????????? | | ?????????????????????????????????????????????????? | | ?????????????????????????????????????????????????? | | ?????????????????????????????????????????????????? | | ?????????????????????????????????????????????????? | | ?????????????????????????????????????????????????? | +----------------------------------------------------+ Best States ------------- Heat Dissipation 35 Energy Generation 14 Energy Capacity 250 Matter Stores 300 Matter Capacity 300 Sight Range 16 Terrain Scan Range 14 Terrain Scan Density 10 Evasion (%) 55 Item Schematics ----------------- None Robot Schematics ------------------ None Fabricated ------------ Nothing Alien Tech Used ----------------- None Achievements -------------- None Challenges ------------ None Game ------ Seed MappingFlakShielding Manual? 0 Play Time 00:14:57 Cumulative 6.8 hours Start 2024.12.01 @ 13:54:33 End 2024.12.01 @ 14:19:53 Sessions 1 Manual Loads 0 Difficulty Rogue Special Mode None Game No. 39 Rogue 39 Adventurer 0 Explorer 0 Win Type - Total 0 Types 0/0/0/0/0/0/0/0/0 Lore% 8 Gallery% 14 Achievement% 16 Wizard Run 0 Options --------- Layout 0 ASCII 0 Keyboard 0 Movement Mouse Keybinds 0 Fullscreen 1 Font 18/Smallcaps Map View 38x25 Zoom Use 98% Tactical HUD 1 Map Filters NONE Filters NONE Steam 1 RUN: 2e13eb71-8fe1-4c13-ad7b-4f99dbe68f3d